bitfinex/quotes_SOLUSD_20250406
["timestamp","ask_amount","ask_price","bid_price","bid_amount"]
[1743952987575,6.0927,114.89,114.85,6.0949]
[1743952987775,6.0927,114.89,114.85,27.59352133]
[1743952988386,6.0927,114.89,114.85,21.49862133]
[1743952988559,21.49862133,114.88,114.83,1.6023]
[1743952988884,21.49862133,114.88,114.83,29.5207829]
[1743952989083,6.0938,114.87,114.83,29.5207829]
[1743952989582,27.59212133,114.88,114.84,21.49862133]
[1743952991281,27.59212133,114.88,114.83,35.6166829]
[1743952991477,40.14827019,114.87,114.81,0.03]
[1743952991674,40.14827019,114.87,114.82,29.37862133]
[1743952991862,40.14827019,114.87,114.82,7.88]
[1743952992069,21.49862133,114.86,114.81,29.5507829]
[1743952993066,87.2935,114.88,114.84,21.49862133]
[1743952993266,6.0935,114.88,114.84,21.49862133]
[1743952993782,27.59212133,114.88,114.83,21.49862133]
[1743952993981,21.49862133,114.87,114.82,27.7369829]
[1743952994174,21.49862133,114.86,114.82,21.49862133]
[1743952994386,21.49862133,114.86,114.81,29.40862133]
[1743952994683,21.49862133,114.86,114.81,7.91]
[1743952995088,21.49862133,114.84,114.81,0.03]
[1743952995272,47.49862133,114.84,114.81,0.03]
[1743952995469,6.0959,114.83,114.81,0.03]
[1743952995793,21.49862133,114.82,114.81,0.03]
[1743952996486,40.14827019,114.82,114.81,0.03]
[1743952996898,40.43259333,114.82,114.81,0.03]
[1743952997189,26.0,114.79,114.77,0.03]
[1743952997409,21.49862133,114.78,114.77,0.03]
[1743952997783,27.59722133,114.78,114.77,0.03]
[1743952998180,46.24687019,114.78,114.77,0.03]
[1743952998401,54.28757019,114.78,114.77,0.03]
[1743952998600,32.78894886,114.78,114.77,0.03]
[1743952998909,53.59682133,114.79,114.77,0.03]
[1743952999200,32.0982,114.79,114.77,0.03]
[1743952999402,53.59682133,114.79,114.77,0.03]
[1743952999705,26.0,114.79,114.77,0.03]
[1743953000604,32.0981,114.79,114.77,0.03]
[1743953000802,26.0,114.79,114.77,0.03]
[1743953001302,14.1379,114.81,114.77,21.52862133]
[1743953001510,87.2966,114.82,114.78,21.49862133]
[1743953001813,6.0966,114.82,114.79,21.49862133]
[1743953002008,6.0961,114.83,114.79,21.49862133]
[1743953002685,27.59412133,114.84,114.8,21.49862133]
[1743953002886,0.063,114.81,114.8,21.49862133]
[1743953004583,0.063,114.81,114.79,21.49862133]
[1743953006496,0.063,114.81,114.78,21.49862133]
[1743953006706,6.16,114.81,114.77,29.40862133]
[1743953006894,6.16,114.81,114.77,35.50762133]
[1743953007093,0.063,114.81,114.77,35.50762133]
[1743953007290,0.063,114.81,114.78,21.49862133]
[1743953007987,0.063,114.81,114.77,7.91]
[1743953008194,0.063,114.81,114.77,29.40862133]
[1743953009817,0.063,114.81,114.78,21.49862133]
[1743953013510,0.063,114.81,114.78,6.0985]
[1743953013699,0.063,114.81,114.8,21.49862133]
[1743953014009,0.063,114.81,114.79,21.49862133]
[1743953015105,0.063,114.81,114.77,29.40862133]
[1743953015491,6.16,114.81,114.77,29.40862133]
[1743953016291,6.16,114.81,114.78,0.03]
[1743953017985,6.16,114.81,114.78,21.52862133]
[1743953019113,6.16,114.81,114.78,0.03]
[1743953019495,27.65862133,114.81,114.78,0.03]
[1743953019702,21.49862133,114.8,114.78,0.03]
[1743953021114,27.65862133,114.81,114.78,0.03]
[1743953021687,18.64964886,114.8,114.78,0.03]
[1743953021892,40.14827019,114.8,114.78,0.03]
[1743953022403,6.16,114.81,114.78,0.03]
[1743953022727,0.063,114.81,114.8,21.49862133]
[1743953024011,0.063,114.81,114.79,13.9779]
[1743953024414,0.063,114.81,114.79,35.47652133]
[1743953024621,0.063,114.81,114.8,21.49862133]
[1743953025026,0.063,114.81,114.8,27.59612133]
[1743953025232,0.063,114.81,114.8,21.49862133]
[1743953025726,0.063,114.81,114.79,7.88]
[1743953026224,0.063,114.81,114.79,35.47662133]
[1743953028507,0.063,114.81,114.8,21.49862133]
[1743953029829,0.063,114.81,114.8,27.59612133]
[1743953030823,0.0164517,114.81,114.8,27.59612133]
[1743953033835,0.0164517,114.81,114.79,14.0078]
[1743953034133,0.0164517,114.81,114.79,7.91]
[1743953035346,0.0164517,114.81,114.79,0.03]
[1743953037220,40.16472189,114.81,114.79,0.03]
[1743953037421,21.49862133,114.8,114.79,0.03]
[1743953037854,40.16472189,114.81,114.79,0.03]
[1743953038638,46.26222189,114.81,114.79,0.03]
[1743953039243,0.0164517,114.81,114.79,0.03]
[1743953040354,102.98294447,114.8,114.79,0.03]
[1743953040662,27.88044447,114.8,114.79,0.03]
[1743953041228,18.64964886,114.8,114.79,0.03]
[1743953041428,29.22487303,114.81,114.79,0.03]
[1743953041429,0.0164517,114.81,114.79,0.03]
[1743953041629,0.0164517,114.81,114.79,21.52862133]
[1743953042959,0.0164517,114.81,114.79,27.62652133]
[1743953044158,0.0164517,114.81,114.8,21.49862133]
[1743953044965,0.0164517,114.81,114.8,27.59612133]
[1743953045638,0.0164517,114.81,114.8,21.49862133]
[1743953048262,0.0164517,114.81,114.79,35.50642133]
[1743953051261,0.0164517,114.81,114.79,27.77170023]
[1743953051464,0.0164517,114.81,114.79,6.91]
[1743953052061,94.96390023,114.8,114.78,0.03]
[1743953052957,32.41354909,114.79,114.78,0.03]
[1743953053143,113.61354909,114.79,114.78,0.03]
[1743953053341,121.37390522,114.79,114.78,0.03]
[1743953053544,99.84964886,114.79,114.78,0.03]
[1743953053966,105.94764886,114.79,114.78,0.03]
[1743953054165,127.47190522,114.79,114.78,0.03]
[1743953055453,121.37390522,114.79,114.78,0.03]
[1743953055866,105.94764886,114.79,114.78,0.03]
[1743953056162,127.75622836,114.79,114.78,0.03]
[1743953056870,46.55622836,114.79,114.78,0.03]
[1743953058575,18.64964886,114.79,114.78,0.03]
[1743953060579,24.74764886,114.79,114.78,0.03]
[1743953061076,46.27190522,114.79,114.78,0.03]
[1743953062154,24.74764886,114.79,114.78,0.03]
[1743953063777,27.62195636,114.8,114.78,0.03]
[1743953065083,26.0,114.79,114.78,0.03]
[1743953065381,0.0164517,114.81,114.78,29.43425636]
[1743953065558,26.0164517,114.81,114.79,21.52425636]
[1743953066087,0.0164517,114.81,114.79,21.52425636]
[1743953066581,0.0164517,114.81,114.8,21.52425636]
[1743953067074,0.0164517,114.81,114.8,21.66641793]
[1743953068073,0.0164517,114.81,114.8,27.76391793]
[1743953068383,0.0164517,114.81,114.8,29.37201793]
[1743953069784,0.0164517,114.81,114.78,8.05216157]
[1743953069987,0.0164517,114.81,114.79,21.52425636]
[1743953070169,0.0164517,114.81,114.78,7.91]
[1743953070366,0.0164517,114.81,114.78,35.53275636]
[1743953070579,0.0164517,114.81,114.79,21.52425636]
[1743953070770,0.0164517,114.81,114.8,21.52425636]
[1743953071477,0.0164517,114.81,114.8,27.62175636]
[1743953073286,0.0164517,114.81,114.8,7.88]
[1743953073590,0.0164517,114.81,114.78,29.43425636]
[1743953073976,0.0164517,114.81,114.78,7.91]
[1743953074395,21.54070806,114.81,114.78,7.91]
[1743953075087,21.54070806,114.81,114.78,0.03]
[1743953075595,87.2976,114.8,114.78,0.03]
[1743953076691,81.2,114.8,114.79,21.52425636]
[1743953077575,81.2,114.8,114.79,27.62225636]
[1743953080299,0.0164517,114.81,114.79,27.62225636]
[1743953080910,0.0164517,114.81,114.8,21.52425636]
[1743953081600,0.0164517,114.81,114.8,21.66641793]
[1743953082316,0.0164517,114.81,114.8,27.76391793]
[1743953085201,0.0164517,114.81,114.8,28.04824107]
[1743953085784,0.0164517,114.81,114.8,46.69788993]
[1743953086786,0.0164517,114.81,114.8,28.04824107]
[1743953087098,0.0164517,114.81,114.8,27.76391793]
[1743953092419,0.0164517,114.81,114.79,29.24205636]
[1743953093103,0.0164517,114.81,114.8,21.66641793]
[1743953093498,0.0164517,114.81,114.8,21.95074107]
[1743953093810,0.0164517,114.81,114.8,28.04824107]
[1743953095691,0.0164517,114.81,114.8,46.69788993]
[1743953099503,0.0164517,114.81,114.8,28.04824107]
[1743953100319,0.0164517,114.81,114.8,14.09966157]
[1743953101216,0.0164517,114.81,114.79,6.1278]
[1743953101613,0.0164517,114.81,114.8,7.86]
[1743953103917,21.54070806,114.81,114.79,7.89]
[1743953104219,21.52425636,114.8,114.79,0.03]
[1743953104618,0.0164517,114.81,114.79,0.03]
[1743953106720,0.0164517,114.81,114.79,6.128]
[1743953107107,0.0164517,114.81,114.79,27.65225636]
[1743953107309,0.0164517,114.81,114.79,6.128]
[1743953108002,0.0164517,114.81,114.8,0.14216157]
[1743953108505,0.0164517,114.81,114.8,21.95074107]
[1743953108698,0.0164517,114.81,114.8,46.69788993]
[1743953109812,0.0164517,114.81,114.8,47.19788993]
[1743953112537,81.2,114.9,114.82,0.42648471]
[1743953112722,81.2,114.9,114.85,21.52425636]
[1743953112932,102.72425636,114.9,114.86,6.0943]
[1743953113132,102.72425636,114.9,114.87,7.86]
[1743953114834,21.52425636,114.88,114.87,7.86]
[1743953115033,21.52425636,114.88,114.84,13.9552]
[1743953115229,21.52425636,114.87,114.84,13.9552]
[1743953115411,21.52425636,114.88,114.84,13.9552]
[1743953116625,21.52425636,114.87,114.84,13.9552]
[1743953117413,21.52425636,114.88,114.84,13.9552]
[1743953117611,21.52425636,114.88,114.84,35.47945636]
[1743953118416,21.52425636,114.89,114.84,35.47945636]
[1743953119234,0.063,114.88,114.84,35.47945636]
[1743953120334,0.063,114.88,114.86,6.0943]
[1743953125638,21.58725636,114.88,114.86,6.0943]
[1743953126014,0.063,114.88,114.86,6.0943]
[1743953126223,0.063,114.88,114.87,0.14216157]
[1743953127751,0.063,114.88,114.87,6.23596157]
[1743953129047,21.58725636,114.88,114.85,6.0949]
[1743953129223,21.52425636,114.86,114.85,7.86]
[1743953129917,21.52425636,114.87,114.85,7.86]
[1743953130113,21.58725636,114.88,114.85,13.9548]
[1743953130319,0.063,114.88,114.85,13.9548]
[1743953130518,0.063,114.88,114.86,0.14216157]
[1743953132126,0.063,114.88,114.87,27.76021793]
[1743953133621,0.063,114.88,114.87,28.04454107]
[1743953134211,0.063,114.88,114.87,27.76021793]
[1743953134417,0.063,114.88,114.87,6.23596157]
[1743953135338,0.063,114.88,114.87,27.76021793]
[1743953136931,0.063,114.88,114.87,6.23596157]
[1743953139042,0.063,114.88,114.87,27.76021793]
[1743953139533,0.063,114.88,114.87,28.04454107]
[1743953140640,0.063,114.88,114.87,6.23596157]
[1743953141649,0.063,114.88,114.86,6.0941]
[1743953141853,21.52425636,114.87,114.84,8.00216157]
[1743953142052,21.52425636,114.85,114.83,13.9559]
[1743953142346,21.52425636,114.86,114.83,13.9559]
[1743953144045,21.52425636,114.85,114.82,6.23836157]
[1743953144239,21.52425636,114.84,114.81,6.1269]
[1743953144552,21.52425636,114.82,114.81,7.89]
[1743953146955,21.52425636,114.83,114.81,13.987]
[1743953148438,21.52425636,114.83,114.81,7.89]
[1743953148945,21.52425636,114.82,114.81,7.89]
[1743953150254,21.52425636,114.83,114.81,7.89]
[1743953150840,21.52425636,114.83,114.81,13.987]
[1743953152343,21.52425636,114.83,114.81,0.03]
[1743953152551,21.52425636,114.82,114.81,0.03]
[1743953153137,28.00785636,114.82,114.81,0.03]
[1743953153844,46.65750522,114.82,114.81,0.03]
[1743953154358,52.75390522,114.82,114.81,0.03]
[1743953154843,46.65750522,114.82,114.81,0.03]
[1743953156438,52.75390522,114.82,114.81,0.03]
[1743953157463,46.65750522,114.82,114.81,0.03]
[1743953157840,21.58725636,114.83,114.81,0.03]
[1743953158642,21.58725636,114.83,114.81,6.127]
[1743953159946,0.063,114.83,114.82,21.66641793]
[1743953160252,0.063,114.83,114.82,0.14216157]
[1743953160458,0.063,114.83,114.81,6.127]
[1743953160951,0.063,114.83,114.82,7.86]
[1743953163342,0.063,114.83,114.82,13.9564]
[1743953164365,0.063,114.83,114.82,35.62281793]
[1743953166555,0.063,114.83,114.82,14.09856157]
[1743953167566,0.063,114.83,114.82,35.62281793]
[1743953167772,0.0001,114.83,114.82,35.90714107]
[1743953169750,0.0001,114.83,114.82,54.55678993]
[1743953171879,0.063,114.88,114.87,0.14216157]
[1743953172178,0.063,114.88,114.87,31.01611793]
[1743953173804,0.063,114.88,114.87,37.10991793]
[1743953174976,0.063,114.88,114.87,35.60021793]
[1743953175376,0.063,114.88,114.87,6.23596157]
[1743953175582,21.58725636,114.88,114.83,21.52425636]
[1743953175752,21.52425636,114.86,114.84,30.0]
[1743953176052,21.52425636,114.85,114.84,30.0]
[1743953176766,81.2,114.86,114.81,13.9668]
[1743953177068,21.52425636,114.84,114.82,30.0]
[1743953177274,102.72425636,114.85,114.82,30.0]
[1743953177678,102.72425636,114.85,114.82,36.0964]
[1743953178057,102.72425636,114.85,114.82,6.0964]
[1743953178282,21.52425636,114.87,114.83,0.14216157]
[1743953179059,21.52425636,114.86,114.83,0.14216157]
[1743953179276,21.52425636,114.84,114.81,7.87]
[1743953179487,21.52425636,114.83,114.81,7.87]
[1743953180879,21.52425636,114.84,114.81,7.87]
[1743953181075,21.52425636,114.84,114.81,13.967]
[1743953181296,81.2,114.86,114.82,0.14216157]
[1743953181465,81.2,114.86,114.82,21.66641793]
[1743953181666,102.72425636,114.86,114.82,0.14216157]
[1743953182184,102.72425636,114.86,114.82,6.23816157]
[1743953182398,21.52425636,114.84,114.81,7.87]
[1743953182983,21.52425636,114.84,114.81,13.9668]
[1743953184603,87.3575,114.86,114.81,13.9668]
[1743953184768,21.52425636,114.85,114.81,13.9668]
[1743953185174,81.263,114.86,114.82,21.66641793]
[1743953185379,0.063,114.86,114.83,21.52425636]
[1743953186290,0.063,114.86,114.82,21.66641793]
[1743953186882,0.063,114.86,114.83,6.0959]
[1743953190003,0.063,114.86,114.83,27.62015636]
[1743953190396,0.063,114.86,114.84,0.14216157]
[1743953190596,0.063,114.86,114.85,29.50641793]
[1743953190781,0.063,114.86,114.85,7.98216157]
[1743953191099,0.063,114.86,114.85,29.50641793]
[1743953191494,0.063,114.86,114.85,35.60131793]
[1743953192498,0.063,114.86,114.85,14.07706157]
[1743953192800,0.063,114.86,114.85,35.60131793]
[1743953193392,0.063,114.86,114.85,14.07706157]
[1743953193591,0.063,114.86,114.85,35.60131793]
[1743953196104,0.063,114.86,114.85,14.07706157]
[1743953196318,0.063,114.86,114.85,35.60131793]
[1743953198202,0.063,114.86,114.85,13.9349]
[1743953198496,0.063,114.86,114.85,7.84]
[1743953199206,0.063,114.86,114.85,13.9349]
[1743953199508,0.063,114.86,114.85,35.60131793]
[1743953199883,0.063,114.86,114.85,14.07706157]
[1743953200503,0.063,114.86,114.85,35.60131793]
[1743953205419,0.063,114.86,114.85,14.07706157]
[1743953206018,0.622035,114.86,114.85,14.07706157]
[1743953209305,3.5e-05,114.86,114.85,54.53528993]
[1743953211597,3.5e-05,114.86,114.85,58.83993334]
[1743953212407,3.5e-05,114.86,114.85,54.53528993]
[1743953213018,3.5e-05,114.86,114.85,6.23706157]
[1743953213234,3.5e-05,114.86,114.85,14.07706157]
[1743953214332,3.5e-05,114.86,114.85,35.60131793]
[1743953215530,3.5e-05,114.86,114.85,14.07706157]
[1743953217412,3.5e-05,114.86,114.85,35.60131793]
[1743953217816,3.5e-05,114.86,114.85,54.53528993]
[1743953218001,3.5e-05,114.86,114.85,60.53938993]
[1743953219432,3.5e-05,114.86,114.85,14.36138471]
[1743953220031,3.5e-05,114.86,114.85,14.07706157]
[1743953220620,3.5e-05,114.86,114.85,35.7434795]
[1743953220820,3.5e-05,114.86,114.85,54.53528993]
[1743953222134,0.063035,114.86,114.85,54.53528993]
[1743953225041,0.063035,114.86,114.85,35.88564107]
[1743953226765,3.5e-05,114.86,114.85,35.88564107]
[1743953229365,3.5e-05,114.86,114.85,54.53528993]
[1743953229943,3.5e-05,114.86,114.85,60.77858993]
[1743953230978,3.5e-05,114.86,114.85,90.77858993]
[1743953236359,3.5e-05,114.86,114.85,63.01103357]
[1743953236541,3.5e-05,114.86,114.85,84.56528993]
[1743953238667,0.063,114.88,114.87,40.60038993]
[1743953240247,0.063,114.88,114.87,46.69418993]
[1743953245675,0.063,114.93,114.9,18.79181043]
[1743953245865,0.063,114.93,114.92,21.52425636]
[1743953246453,0.063,114.93,114.92,40.60038993]
[1743953246660,0.0001,114.93,114.92,40.60038993]
[1743953246970,0.063,114.97,114.94,0.28432314]
[1743953247178,0.063,114.97,114.96,21.66641793]
[1743953247363,0.063,114.97,114.96,0.14216157]
[1743953247770,0.063,114.97,114.96,6.23116157]
[1743953248280,0.063,114.97,114.96,28.03974107]
[1743953250657,0.063,114.97,114.96,46.68938993]
[1743953251356,0.063,114.97,114.96,50.94863052]
[1743953252463,21.52425636,114.99,114.97,0.14216157]
[1743953254689,21.58725636,115.0,114.97,6.23066157]
[1743953255882,0.063,115.0,114.97,6.23066157]
[1743953256084,21.58725636,115.0,114.97,6.23066157]
[1743953256471,0.063,115.0,114.97,6.23066157]
[1743953256979,21.58725636,115.0,114.97,6.23066157]
[1743953258684,21.58725636,115.0,114.97,0.14216157]
[1743953259387,21.58725636,115.0,114.97,6.23066157]
[1743953260091,21.52425636,114.99,114.97,7.82]
[1743953261372,21.58725636,115.0,114.97,7.82]
[1743953261686,21.58725636,115.0,114.97,13.9085]
[1743953263093,0.063,115.0,114.97,13.9085]
[1743953263291,21.58725636,115.0,114.97,13.9085]
[1743953263592,21.58725636,115.0,114.97,13.9715]
[1743953265290,21.52425636,114.99,114.97,13.9715]
[1743953265868,21.52425636,114.99,114.97,7.883]
[1743953269088,21.52425636,114.99,114.97,0.063]
[1743953269089,29.86345636,114.98,114.97,0.063]
[1743953269397,35.95145636,114.98,114.97,0.063]
[1743953270289,54.88542836,114.98,114.97,0.063]
[1743953271293,47.0978996,114.98,114.97,0.063]
[1743953272998,46.81357646,114.98,114.97,0.063]
[1743953273295,29.79649025,114.98,114.97,0.063]
[1743953274299,35.88449025,114.98,114.97,0.063]
[1743953276480,29.79649025,114.98,114.97,0.063]
[1743953280104,35.88449025,114.98,114.97,0.063]
[1743953285500,29.79649025,114.98,114.97,0.063]
[1743953285693,23.17439025,114.98,114.97,0.063]
[1743953285892,21.52029025,114.98,114.97,0.063]
[1743953286301,0.063,114.98,114.97,0.063]
[1743953287506,21.52029025,114.98,114.97,0.063]
[1743953290111,27.60829025,114.98,114.97,0.063]
[1743953293408,46.25793911,114.98,114.97,0.063]
[1743953295315,38.53668148,114.98,114.97,0.063]
[1743953297010,19.88703262,114.98,114.97,0.063]
[1743953297196,13.79903262,114.98,114.97,0.063]
[1743953299938,19.88703262,114.98,114.97,0.063]
[1743953300232,38.53668148,114.98,114.97,0.063]
[1743953300436,18.64964886,114.97,114.92,7.82]
[1743953300638,13.73603262,114.93,114.92,7.82]
[1743953301433,13.73603262,114.93,114.91,9.4596]
[1743953304342,13.73603262,114.93,114.91,1.6396]
[1743953305337,13.73603262,114.93,114.91,9.4596]
[1743953306342,13.73603262,114.93,114.91,15.5512]
[1743953306934,13.73603262,114.94,114.91,15.5512]
[1743953307948,13.73603262,114.93,114.91,15.5512]
[1743953308458,13.73603262,114.94,114.91,15.5512]
[1743953311444,13.73603262,114.94,114.91,13.9746]
[1743953312967,13.73603262,114.93,114.91,13.9746]
[1743953313568,13.73603262,114.94,114.91,13.9746]
[1743953320053,13.73603262,114.93,114.91,13.9746]
[1743953320548,13.73603262,114.93,114.91,7.883]
[1743953320754,13.73603262,114.92,114.91,7.883]
[1743953321560,13.73603262,114.93,114.91,7.883]
[1743953322870,13.73603262,114.92,114.91,7.883]
[1743953323970,13.73603262,114.92,114.91,0.063]
[1743953324949,13.73603262,114.93,114.91,0.063]
[1743953326062,81.2,114.96,114.91,0.20516157]
[1743953326267,13.73603262,114.95,114.91,0.20516157]
[1743953326874,13.73603262,114.95,114.92,6.0911]
[1743953327752,13.73603262,114.94,114.92,6.0911]
[1743953328151,13.73603262,114.94,114.91,6.29666157]
[1743953331582,13.73603262,114.92,114.91,0.063]
[1743953331758,32.38568148,114.92,114.91,0.063]
[1743953331960,26.0,114.89,114.87,30.0]
[1743953332276,13.73603262,114.88,114.85,0.03]
[1743953332672,13.73603262,114.86,114.85,0.03]
[1743953337356,81.2,114.87,114.85,0.03]
[1743953337578,94.93603262,114.87,114.85,0.03]
[1743953338260,13.73603262,114.86,114.85,0.03]
[1743953338882,13.73603262,114.87,114.85,0.03]
[1743953340481,13.73603262,114.88,114.85,7.85]
[1743953341270,13.73603262,114.87,114.85,13.9444]
[1743953344668,26.0,114.89,114.85,13.9444]
[1743953344866,13.73603262,114.88,114.85,13.9444]
[1743953346398,13.73603262,114.87,114.85,13.9444]
[1743953348389,13.73603262,114.87,114.85,7.85]
[1743953348563,32.0928,114.89,114.85,7.85]
[1743953348564,13.73603262,114.86,114.85,7.85]
[1743953349567,13.73603262,114.86,114.85,0.03]
[1743953353296,119.67998148,114.86,114.85,0.03]
[1743953354996,119.96430462,114.86,114.85,0.03]
[1743953358493,119.67998148,114.86,114.85,0.03]
[1743953358698,94.93603262,114.86,114.85,0.03]
[1743953361199,119.67998148,114.86,114.85,0.03]
[1743953361495,105.94394886,114.86,114.85,0.03]
[1743953361698,119.67998148,114.86,114.85,0.03]
[1743953361903,94.93603262,114.86,114.85,0.03]
[1743953364798,101.03033262,114.86,114.85,0.03]
[1743953365183,119.67998148,114.86,114.85,0.03]
[1743953366304,119.96430462,114.86,114.85,0.03]
[1743953370589,38.76430462,114.86,114.85,0.03]
[1743953370899,38.90646619,114.86,114.85,0.03]
[1743953371204,38.90646619,114.86,114.83,0.03]
[1743953371205,93.42521196,114.84,114.83,0.03]
[1743953371902,38.48108148,114.84,114.83,0.03]
[1743953372903,32.38568148,114.84,114.83,0.03]
[1743953373602,38.48108148,114.84,114.83,0.03]
[1743953375206,26.0,114.84,114.83,0.03]
[1743953376480,39.73603262,114.84,114.83,0.03]
[1743953377188,45.83143262,114.84,114.83,0.03]
[1743953377388,64.48108148,114.84,114.83,0.03]
[1743953378502,145.96540462,114.84,114.83,0.03]
[1743953380100,139.58568148,114.84,114.83,0.03]
[1743953381685,145.68108148,114.84,114.83,0.03]
[1743953388512,119.85169667,114.84,114.83,0.03]
[1743953388808,121.46869667,114.84,114.83,0.03]
[1743953393712,121.46869667,114.84,114.81,0.03]
[1743953393713,100.27613357,114.83,114.81,0.03]
[1743953393890,113.58568148,114.82,114.81,0.03]
[1743953395492,114.01216619,114.82,114.81,0.03]
[1743953395832,120.10856619,114.82,114.81,0.03]
[1743953396913,38.90856619,114.82,114.81,0.03]
[1743953400427,58.38568148,114.8,114.79,0.03]
[1743953402212,39.73603262,114.8,114.79,0.03]
[1743953402710,26.0,114.8,114.79,0.03]
[1743953402901,39.73603262,114.8,114.79,0.03]
[1743953403624,64.76750462,114.8,114.79,0.03]
[1743953408015,64.48318148,114.8,114.79,0.03]
[1743953409032,32.38568148,114.8,114.79,0.03]
[1743953409926,38.48318148,114.8,114.79,0.03]
[1743953410422,32.38568148,114.8,114.79,0.03]
[1743953413322,38.48318148,114.8,114.79,0.03]
[1743953414648,13.73603262,114.8,114.79,0.03]
[1743953418039,0.063,114.81,114.79,0.03]
[1743953418224,0.063,114.81,114.79,13.76603262]
[1743953418421,0.063,114.81,114.79,0.03]
[1743953419548,13.73603262,114.8,114.79,0.03]
[1743953420431,0.063,114.81,114.79,0.03]
[1743953421313,0.063,114.81,114.8,13.73603262]
[1743953421515,0.063,114.81,114.8,19.83353262]
[1743953422842,0.063,114.81,114.8,6.0975]
[1743953429541,0.063,114.81,114.8,19.83353262]
[1743953429757,0.063,114.81,114.8,19.97569419]
[1743953430049,0.063,114.85,114.8,43.36521733]
[1743953430262,0.063,114.85,114.83,13.73603262]
[1743953430435,0.063,114.85,114.84,13.87819419]
[1743953430633,0.063,114.85,114.81,7.8]
[1743953430841,13.73603262,114.84,114.81,7.8]
[1743953431747,13.79903262,114.85,114.81,7.8]
[1743953433060,19.89403262,114.85,114.81,7.8]
[1743953435952,13.73603262,114.84,114.8,7.8613]
[1743953436537,19.89403262,114.85,114.8,27.69473262]
[1743953438859,26.0,114.83,114.8,13.9587]
[1743953439055,26.0,114.83,114.8,27.69473262]
[1743953439231,0.063,114.85,114.81,13.73603262]
[1743953439632,0.063,114.85,114.82,13.87819419]
[1743953439852,0.063,114.85,114.83,7.8]
[1743953441671,0.063,114.85,114.83,13.8959]
[1743953442351,0.063,114.85,114.83,27.63193262]
[1743953442672,0.063,114.85,114.84,15.45939419]
[1743953442968,0.063,114.85,114.84,27.72529419]
[1743953445749,0.063,114.85,114.84,28.00961733]
[1743953446577,0.063,114.85,114.84,13.98926157]
[1743953446875,0.063,114.85,114.84,27.72529419]
[1743953455183,0.063,114.85,114.84,28.00961733]
[1743953461381,0.063,114.85,114.84,60.39529881]
[1743953461586,0.063,114.85,114.84,101.60339667]
[1743953461783,0.063,114.91,114.86,0.42648471]
[1743953461974,0.063,114.91,114.89,13.73603262]
[1743953462386,0.063,114.91,114.9,13.73603262]
[1743953462574,0.063,114.91,114.9,19.82823262]
[1743953463688,0.063,114.91,114.9,19.97039419]
[1743953464478,0.063,114.91,114.9,13.87819419]
[1743953464794,0.063,114.91,114.88,6.23546157]
[1743953465677,13.79903262,114.91,114.88,0.14216157]
[1743953466192,0.063,114.91,114.88,0.14216157]
[1743953466486,13.79903262,114.91,114.88,6.23536157]
[1743953466693,0.063,114.91,114.88,6.23536157]
[1743953467380,0.063,114.91,114.88,19.97139419]
[1743953467693,0.063,114.91,114.89,19.82853262]
[1743953468781,0.063,114.91,114.9,13.87819419]
[1743953469475,0.063,114.91,114.9,14.16251733]
[1743953469877,0.063,114.91,114.9,20.25471733]
[1743953470478,0.063,114.91,114.9,38.90436619]
[1743953473406,0.063,114.91,114.9,20.25471733]
[1743953474481,0.063,114.91,114.9,93.84849667]
[1743953475397,0.063,114.93,114.92,0.28432314]
[1743953475698,0.063,114.93,114.92,48.39326619]
[1743953476200,0.063,114.93,114.92,54.48436619]
[1743953477772,0.063,114.93,114.92,29.65621733]
[1743953478014,0.063,114.93,114.92,27.74929419]
[1743953480686,0.063,114.93,114.9,19.82803262]
[1743953480894,0.063,114.93,114.91,7.78]
[1743953482002,0.063,114.93,114.91,13.8717]